[Event "FIDE WCCC Open-08 2024"]
[Site "Montesilvano"]
[Date "2024.11.25"]
[Round "10.22"]
[White "Zhanabayev, Arystan"]
[Black "Su, Milo"]
[Result "1-0"]
[Annotator "NA RC"]
[ECO "C10"]
[WhiteElo "1524"]
[BlackElo "1696"]
[PlyCount "113"]
[EventDate "2024.11.18"]
[EventType "swiss"]
[EventCountry "ITA"]
[SourceTitle "playchess.com"]
[Source "ChessBase"]
[SourceQuality "1"]
[TimeControl "5400+30"]

1. e4 {[%emt 0:00:00]} c5 {[%emt 0:00:10]} 2. Nf3 {[%emt 0:00:10]} Nc6 {[%emt 0:00:20]} 3. d4 {[%emt 0:00:23]} cxd4 {[%emt 0:00:20]} 4. Nxd4 {[%emt 0:00:04]} Nf6 {[%emt 0:00:09]} 5. Nc3 {[%emt 0:00:08]} e6 {[%emt 0:00:31]} 6. Be2 {[%emt 0:00:10]} d5 {[%emt 0:00:50]} 7. exd5 {[%emt 0:01:30]} exd5 {[%emt 0:00:20]} 8. Bg5 {[%emt 0:02:35]} Be7 {[%emt 0:02:30]} 9. O-O {[%emt 0:03:14]} O-O {[%emt 0:00:42]} 10. Re1 {[%emt 0:02:38]} Nxd4 {[%emt 0:02:08]} 11. Qxd4 {[%emt 0:00:21]} Be6 {[%emt 0:00:41]} 12. Rad1 {[%emt 0:01:11]} h6 {[%emt 0:04:59]} 13. Bh4 {[%emt 0:00:19]} Rc8 {[%emt 0:00:40]} 14. Bf3 {[%emt 0:05:41]} b6 {[%emt 0:03:00]} 15. Qa4 {[%emt 0:13:57]} Re8 {[%emt 0:08:56]} 16. h3 {[%emt 0:04:35]} Rc4 {[%emt 0:05:11]} 17. Qxc4 {[%emt 0:02:13]} dxc4 {[%emt 0:00:08]} 18. Rxd8 {[%emt 0:00:15]} Rxd8 {[%emt 0:00:08]} 19. Rd1 {[%emt 0:00:12]} Bf5 {[%emt 0:02:55]} 20. Rxd8+ {[%emt 0:01:37]} Bxd8 {[%emt 0:00:37]} 21. Be2 {[%emt 0:04:55]} Bxc2 {[%emt 0:03:25]} 22. Bxc4 {[%emt 0:00:21]} a5 {[%emt 0:03:30]} 23. Nb5 {[%emt 0:01:34]} g5 {[%emt 0:01:02]} 24. Bg3 {[%emt 0:00:29]} Ne4 {[%emt 0:00:25]} 25. Be5 {[%emt 0:03:31]} Nd2 {[%emt 0:01:03]} 26. Bd5 {[%emt 0:01:34]} Bd3 {[%emt 0:00:54]} 27. Nd6 {[%emt 0:00:30]} Bg6 {[%emt 0:01:31]} 28. Bc3 {[%emt 0:01:32]} Nb1 {[%emt 0:00:20]} 29. Bd4 {[%emt 0:00:28]} Kf8 {[%emt 0:02:21]} 30. Nc8 {[%emt 0:00:48]} b5 {[%emt 0:01:23]} 31. Bc5+ {[%emt 0:00:21]} Kg7 {[%emt 0:00:19]} 32. Nd6 {[%emt 0:01:14]} b4 {[%emt 0:00:24]} 33. Bd4+ {[%emt 0:00:51]} Kf8 {[%emt 0:00:26]} 34. Nb7 {[%emt 0:01:00]} Bc7 {[%emt 0:00:19]} 35. Bc5+ {[%emt 0:00:29]} Kg7 {[%emt 0:00:18]} 36. Bd4+ {[%emt 0:02:47]} Kf8 {[%emt 0:00:11]} 37. Nc5 {[%emt 0:00:33]} Nd2 {[%emt 0:01:42]} 38. Be3 {[%emt 0:01:30]} Nb1 {[%emt 0:00:20]} 39. Kf1 {[%emt 0:00:32]} Ke7 {[%emt 0:00:50]} 40. Be4 {[%emt 0:02:12]} Bxe4 {[%emt 0:01:05]} 41. Nxe4 {[%emt 0:00:12]} Be5 {[%emt 0:00:53]} 42. Bc1 {[%emt 0:01:32]} a4 {[%emt 0:00:41]} 43. Ke2 {[%emt 0:03:43]} a3 {[%emt 0:00:39]} 44. b3 {[%emt 0:00:44]} Nc3+ {[%emt 0:01:10]} 45. Nxc3 {[%emt 0:00:26]} Bxc3 {[%emt 0:00:04]} 46. Kd3 {[%emt 0:00:18]} Be5 {[%emt 0:00:53]} 47. Kc4 {[%emt 0:01:05]} f5 {[%emt 0:01:48]} 48. Kxb4 {[%emt 0:02:53]} f4 {[%emt 0:01:58]} 49. Bxa3 {[%emt 0:02:55]} h5 {[%emt 0:00:11]} 50. Kc4+ {[%emt 0:00:10]} Ke6 {[%emt 0:00:06]} 51. b4 {[%emt 0:01:03]} g4 {[%emt 0:00:08]} 52. hxg4 {[%emt 0:03:04]} h4 {[%emt 0:00:10]} 53. f3 {[%emt 0:00:26]} Kf6 {[%emt 0:00:49]} 54. b5 {[%emt 0:02:10]} Bc7 {[%emt 0:00:53]} 55. Kd5 {[%emt 0:01:28]} Kg5 {[%emt 0:00:08]} 56. Be7+ {[%emt 0:00:14]} Kg6 {[%emt 0:00:39]} 57. Bxh4 {[%emt 0:00:08]} 1-0

[Event "FIDE WCCC Open-08 2024"]
[Site "Montesilvano"]
[Date "2024.11.25"]
[Round "10.23"]
[White "Mankovich, Yoav"]
[Black "Szumiec, Jan"]
[Result "1-0"]
[Annotator "NA RC"]
[ECO "B62"]
[WhiteElo "1490"]
[BlackElo "1678"]
[PlyCount "63"]
[EventDate "2024.11.18"]
[EventType "swiss"]
[EventCountry "ITA"]
[SourceTitle "playchess.com"]
[Source "ChessBase"]
[SourceQuality "1"]
[TimeControl "5400+30"]

1. e4 {[%emt 0:00:08]} c5 {[%emt 0:00:00]} 2. Nf3 {[%emt 0:00:18]} d6 {[%emt 0:00:00]} 3. d4 {[%emt 0:00:26]} cxd4 {[%emt 0:00:00]} 4. Nxd4 {[%emt 0:00:08]} Nf6 {[%emt 0:00:13]} 5. Nc3 {[%emt 0:00:46]} Nc6 {[%emt 0:00:08]} 6. Bg5 {[%emt 0:00:42]} e6 {[%emt 0:00:11]} 7. Bb5 {[%emt 0:00:47]} Bd7 {[%emt 0:00:45]} 8. Qd3 {[%emt 0:01:19]} a6 {[%emt 0:02:52]} 9. Bxc6 {[%emt 0:00:44]} bxc6 {[%emt 0:00:34]} 10. O-O-O {[%emt 0:12:54]} Be7 {[%emt 0:11:46]} 11. Nb3 {[%emt 0:01:19]} d5 {[%emt 0:04:16]} 12. e5 {[%emt 0:02:24]} Ng4 {[%emt 0:07:48]} 13. Bxe7 {[%emt 0:00:36]} Qxe7 {[%emt 0:00:03]} 14. Qd4 {[%emt 0:00:46]} Nh6 {[%emt 0:01:15]} 15. f4 {[%emt 0:00:29]} Nf5 {[%emt 0:00:41]} 16. Qf2 {[%emt 0:00:42]} Qb4 {[%emt 0:11:25]} 17. a3 {[%emt 0:05:22]} Qb7 {[%emt 0:11:23]} 18. g4 {[%emt 0:02:56]} Ne7 {[%emt 0:00:33]} 19. h4 {[%emt 0:01:41]} O-O {[%emt 0:02:01]} 20. h5 {[%emt 0:00:19]} Kh8 {[%emt 0:01:43]} 21. h6 {[%emt 0:00:24]} g6 {[%emt 0:00:08]} 22. Qh4 {[%emt 0:17:46]} Ng8 {[%emt 0:00:03]} 23. Qg3 {[%emt 0:02:30]} Qa7 {[%emt 0:02:53]} 24. Na4 {[%emt 0:00:50]} Rac8 {[%emt 0:04:53]} 25. Nac5 {[%emt 0:01:10]} Rb8 {[%emt 0:07:05]} 26. Qc3 {[%emt 0:03:01]} Ra8 {[%emt 0:04:58]} 27. Rd4 {[%emt 0:04:30]} Bc8 {[%emt 0:10:04]} 28. Rb4 {[%emt 0:12:06]} Rb8 {[%emt 0:01:01]} 29. Na5 {[%emt 0:03:25]} Rb5 {[%emt 0:04:41]} 30. Nab3 {[%emt 0:01:57]} Rxb4 {[%emt 0:01:29]} 31. Qxb4 {[%emt 0:00:18]} Bd7 {[%emt 0:01:38]} 32. Nxd7 {[%emt 0:00:46]} 1-0

[Event "FIDE WCCC Open-08 2024"]
[Site "Montesilvano"]
[Date "2024.11.25"]
[Round "10.24"]
[White "Czachurski, Ignacy"]
[Black "Sivan, Leeor"]
[Result "0-1"]
[Annotator "NA RC"]
[ECO "C54"]
[WhiteElo "1672"]
[BlackElo "1464"]
[PlyCount "46"]
[EventDate "2024.11.18"]
[EventType "swiss"]
[EventCountry "ITA"]
[SourceTitle "playchess.com"]
[Source "ChessBase"]
[SourceQuality "1"]
[TimeControl "5400+30"]

1. e4 {[%emt 0:00:11]} e5 {[%emt 0:00:44]} 2. Nf3 {[%emt 0:00:11]} Nc6 {[%emt 0:00:16]} 3. Bc4 {[%emt 0:00:17]} Bc5 {[%emt 0:00:54]} 4. c3 {[%emt 0:00:17]} Nf6 {[%emt 0:00:10]} 5. d3 {[%emt 0:00:21]} d6 {[%emt 0:02:02]} 6. Nbd2 {[%emt 0:00:21]} O-O {[%emt 0:01:56]} 7. Bb3 {[%emt 0:00:36]} Bg4 {[%emt 0:00:58]} 8. h3 {[%emt 0:01:16]} Bh5 {[%emt 0:00:33]} 9. g4 {[%emt 0:00:31]} Bg6 {[%emt 0:02:18]} 10. Nf1 {[%emt 0:01:50]} d5 {[%emt 0:00:35]} 11. d4 {[%emt 0:03:01]} exd4 {[%emt 0:00:43]} 12. exd5 {[%emt 0:01:30]} Re8+ {[%emt 0:00:43]} 13. Kd2 {[%emt 0:01:34]} Ne4+ {[%emt 0:00:09]} 14. Ke1 {[%emt 0:00:48]} Nxc3+ {[%emt 0:00:16]} 15. Kd2 {[%emt 0:00:13]} Nxd1 {[%emt 0:00:08]} 16. Kxd1 {[%emt 0:00:11]} Qf6 {[%emt 0:00:21]} 17. N1d2 {[%emt 0:00:09]} Ne5 {[%emt 0:00:23]} 18. g5 {[%emt 0:00:42]} Qf4 {[%emt 0:00:21]} 19. Nxe5 {[%emt 0:00:27]} Qxe5 {[%emt 0:00:05]} 20. Bc4 {[%emt 0:00:26]} d3 {[%emt 0:00:25]} 21. Ne4 {[%emt 0:00:28]} Qxe4 {[%emt 0:00:07]} 22. Kd2 {[%emt 0:00:16]} Bb4+ {[%emt 0:00:09]} 23. Kd1 {[%emt 0:00:10]} Qe2# {[%emt 0:00:03]} 0-1

[Event "FIDE WCCC Open-08 2024"]
[Site "Montesilvano"]
[Date "2024.11.25"]
[Round "10.25"]
[White "Melkonyan, Mark"]
[Black "Ranganathan, Aadith"]
[Result "0-1"]
[Annotator "NA RC"]
[ECO "E51"]
[WhiteElo "1445"]
[BlackElo "1645"]
[PlyCount "88"]
[EventDate "2024.11.18"]
[EventType "swiss"]
[EventCountry "ITA"]
[SourceTitle "playchess.com"]
[Source "ChessBase"]
[SourceQuality "1"]
[TimeControl "5400+30"]

1. d4 {[%emt 0:00:03]} Nf6 {[%emt 0:00:32]} 2. c4 {[%emt 0:00:59]} e6 {[%emt 0:00:09]} 3. Nc3 {[%emt 0:00:56]} Bb4 {[%emt 0:01:18]} 4. Bd2 {[%emt 0:01:50]} O-O {[%emt 0:00:22]} 5. Nf3 {[%emt 0:00:32]} d5 {[%emt 0:00:14]} 6. e3 {[%emt 0:00:49]} Nbd7 {[%emt 0:00:37]} 7. cxd5 {[%emt 0:01:23]} exd5 {[%emt 0:00:22]} 8. Bd3 {[%emt 0:01:32]} c6 {[%emt 0:01:12]} 9. O-O {[%emt 0:00:42]} Bd6 {[%emt 0:00:21]} 10. Re1 {[%emt 0:02:32]} Re8 {[%emt 0:01:35]} 11. Qc2 {[%emt 0:01:53]} h6 {[%emt 0:01:16]} 12. e4 {[%emt 0:02:03]} dxe4 {[%emt 0:00:18]} 13. Nxe4 {[%emt 0:00:12]} Nxe4 {[%emt 0:00:09]} 14. Bxe4 {[%emt 0:01:09]} Nf6 {[%emt 0:00:31]} 15. Ne5 {[%emt 0:08:57]} Nxe4 {[%emt 0:00:39]} 16. Rxe4 {[%emt 0:19:10]} Bf5 {[%emt 0:00:34]} 17. Qb3 {[%emt 0:03:00]} Bxe4 {[%emt 0:00:25]} 18. Nxf7 {[%emt 0:05:05]} Bxh2+ {[%emt 0:02:05]} 19. Kxh2 {[%emt 0:01:52]} Qh4+ {[%emt 0:00:08]} 20. Kg1 {[%emt 0:01:21]} Bd5 {[%emt 0:00:07]} 21. Nxh6+ {[%emt 0:05:08]} Qxh6 {[%emt 0:00:20]} 22. Bxh6 {[%emt 0:03:06]} Bxb3 {[%emt 0:00:10]} 23. Bxg7 {[%emt 0:01:52]} Kxg7 {[%emt 0:00:11]} 24. axb3 {[%emt 0:00:53]} Red8 {[%emt 0:00:07]} 25. Rd1 {[%emt 0:01:25]} Rd5 {[%emt 0:00:17]} 26. Kh2 {[%emt 0:01:04]} c5 {[%emt 0:00:08]} 27. Rc1 {[%emt 0:00:38]} cxd4 {[%emt 0:00:05]} 28. Rc7+ {[%emt 0:00:37]} Kf6 {[%emt 0:00:12]} 29. Kg3 {[%emt 0:02:10]} d3 {[%emt 0:00:12]} 30. Rc1 {[%emt 0:01:46]} d2 {[%emt 0:00:07]} 31. Rd1 {[%emt 0:00:11]} Re8 {[%emt 0:00:06]} 32. Kf4 {[%emt 0:02:09]} Re1 {[%emt 0:00:22]} 33. Rxd2 {[%emt 0:01:04]} Rxd2 {[%emt 0:00:07]} 34. Kf3 {[%emt 0:01:44]} Rxb2 {[%emt 0:00:10]} 35. g4 {[%emt 0:01:48]} Rxb3+ {[%emt 0:00:12]} 36. Kf4 {[%emt 0:00:11]} Rc1 {[%emt 0:00:16]} 37. g5+ {[%emt 0:00:28]} Ke6 {[%emt 0:00:08]} 38. Kg4 {[%emt 0:01:17]} Rg1+ {[%emt 0:00:19]} 39. Kh5 {[%emt 0:00:23]} a5 {[%emt 0:00:12]} 40. Kh6 {[%emt 0:00:39]} a4 {[%emt 0:00:06]} 41. f4 {[%emt 0:00:40]} a3 {[%emt 0:00:05]} 42. Kh7 {[%emt 0:00:40]} Kf7 {[%emt 0:00:05]} 43. g6+ {[%emt 0:00:34]} Rxg6 {[%emt 0:00:09]} 44. f5 {[%emt 0:00:39]} Rh3# {[%emt 0:00:36]} 0-1

[Event "FIDE WCCC Open-08 2024"]
[Site "Montesilvano"]
[Date "2024.11.25"]
[Round "10.26"]
[White "Cherem, Yoseph"]
[Black "Lee, David J"]
[Result "1-0"]
[Annotator "NA RC"]
[ECO "D40"]
[WhiteElo "1634"]
[BlackElo "1446"]
[PlyCount "87"]
[EventDate "2024.11.18"]
[EventType "swiss"]
[EventCountry "ITA"]
[SourceTitle "playchess.com"]
[Source "ChessBase"]
[SourceQuality "1"]
[TimeControl "5400+30"]

1. d4 {[%emt 0:00:10]} d5 {[%emt 0:01:26]} 2. c4 {[%emt 0:01:25]} e6 {[%emt 0:02:43]} 3. Nc3 {[%emt 0:00:50]} c5 {[%emt 0:01:57]} 4. e3 {[%emt 0:00:30]} Nf6 {[%emt 0:00:30]} 5. Nf3 {[%emt 0:00:30]} Nc6 {[%emt 0:02:46]} 6. Be2 {[%emt 0:02:56]} dxc4 {[%emt 0:01:53]} 7. Bxc4 {[%emt 0:00:39]} Be7 {[%emt 0:02:08]} 8. O-O {[%emt 0:01:32]} O-O {[%emt 0:00:38]} 9. b3 {[%emt 0:02:29]} b6 {[%emt 0:05:36]} 10. Bb2 {[%emt 0:00:43]} Bb7 {[%emt 0:02:07]} 11. Rc1 {[%emt 0:02:47]} Rc8 {[%emt 0:06:56]} 12. Re1 {[%emt 0:02:57]} Qd7 {[%emt 0:27:52]} 13. Re2 {[%emt 0:09:20]} Rfd8 {[%emt 0:02:52]} 14. Rd2 {[%emt 0:00:20]} Qc7 {[%emt 0:38:06]} 15. Nb5 {[%emt 0:01:12]} Qb8 {[%emt 0:00:00]} 16. Qe2 {[%emt 0:02:01]} a6 {[%emt 0:00:00]} 17. Nc3 {[%emt 0:03:13]} b5 {[%emt 0:00:00]} 18. Bd3 {[%emt 0:00:11]} cxd4 {[%emt 0:00:00]} 19. exd4 {[%emt 0:01:21]} Bd6 {[%emt 0:00:00]} 20. Rcd1 {[%emt 1:05:24]} Ne7 {[%emt 0:00:00]} 21. Ne4 {[%emt 0:00:00]} Ned5 {[%emt 0:00:00]} 22. Nxf6+ {[%emt 0:00:00]} Nxf6 {[%emt 0:00:00]} 23. Bb1 {[%emt 0:00:00]} Bb4 {[%emt 0:01:03]} 24. Rc2 {[%emt 0:00:00]} Rxc2 {[%emt 0:03:57]} 25. Bxc2 {[%emt 0:00:00]} Ng4 {[%emt 0:00:00]} 26. Bxh7+ {[%emt 0:00:00]} Kxh7 {[%emt 0:00:00]} 27. Ng5+ {[%emt 0:00:00]} Kg8 {[%emt 0:00:00]} 28. Qxg4 {[%emt 0:00:00]} g6 {[%emt 0:00:00]} 29. Nxe6 {[%emt 0:00:00]} Bc8 {[%emt 0:00:00]} 30. d5 {[%emt 0:00:00]} fxe6 {[%emt 0:00:00]} 31. Qxb4 {[%emt 0:00:00]} Rxd5 {[%emt 0:00:00]} 32. Rxd5 {[%emt 0:00:00]} exd5 {[%emt 0:00:00]} 33. Qd4 {[%emt 0:00:00]} Kf7 {[%emt 0:01:47]} 34. Qxd5+ {[%emt 0:00:00]} Be6 {[%emt 0:00:19]} 35. Qf3+ {[%emt 0:00:00]} Kg8 {[%emt 0:00:21]} 36. Qf6 {[%emt 0:00:00]} Qc7 {[%emt 0:00:27]} 37. Qh8+ {[%emt 0:00:00]} Kf7 {[%emt 0:00:05]} 38. Qh7+ {[%emt 0:00:00]} Ke8 {[%emt 0:00:02]} 39. Qxc7 {[%emt 0:00:00]} a5 {[%emt 0:00:03]} 40. Bf6 {[%emt 0:00:00]} Bd7 {[%emt 0:00:04]} 41. Qe5+ {[%emt 0:00:00]} Be6 {[%emt 0:00:08]} 42. Qxe6+ {[%emt 0:00:00]} Kf8 {[%emt 0:00:02]} 43. Qe7+ {[%emt 0:00:00]} Kg8 {[%emt 0:06:12]} 44. Qg7# {[%emt 0:00:00]} 1-0

[Event "FIDE WCCC Open-08 2024"]
[Site "Montesilvano"]
[Date "2024.11.25"]
[Round "10.27"]
[White "Tokmachov, Daniel"]
[Black "Kuncoro, Leo"]
[Result "0-1"]
[Annotator "NA RC"]
[ECO "B22"]
[WhiteElo "1565"]
[BlackElo "1726"]
[PlyCount "96"]
[EventDate "2024.11.18"]
[EventType "swiss"]
[EventCountry "ITA"]
[SourceTitle "playchess.com"]
[Source "ChessBase"]
[SourceQuality "1"]
[TimeControl "5400+30"]

1. e4 {[%emt 0:00:07]} c5 {[%emt 0:00:02]} 2. c3 {[%emt 0:00:11]} d5 {[%emt 0:00:13]} 3. exd5 {[%emt 0:00:21]} Qxd5 {[%emt 0:00:06]} 4. d4 {[%emt 0:01:50]} Nc6 {[%emt 0:00:04]} 5. Nf3 {[%emt 0:00:26]} Nf6 {[%emt 0:00:16]} 6. Be3 {[%emt 0:09:43]} Bg4 {[%emt 0:00:23]} 7. Be2 {[%emt 0:01:06]} cxd4 {[%emt 0:00:41]} 8. Bxd4 {[%emt 0:01:53]} Nxd4 {[%emt 0:04:50]} 9. Qxd4 {[%emt 0:04:14]} Bxf3 {[%emt 0:11:53]} 10. Bxf3 {[%emt 0:02:08]} Qxd4 {[%emt 0:00:06]} 11. cxd4 {[%emt 0:00:45]} O-O-O {[%emt 0:00:46]} 12. Nc3 {[%emt 0:00:35]} Rxd4 {[%emt 0:11:48]} 13. O-O {[%emt 0:03:17]} e6 {[%emt 0:01:21]} 14. Rac1 {[%emt 0:01:33]} Kb8 {[%emt 0:01:08]} 15. Rfd1 {[%emt 0:02:36]} Rxd1+ {[%emt 0:01:23]} 16. Rxd1 {[%emt 0:00:26]} Be7 {[%emt 0:15:13]} 17. Ne4 {[%emt 0:05:58]} Nd5 {[%emt 0:02:15]} 18. Rc1 {[%emt 0:04:09]} Rc8 {[%emt 0:00:42]} 19. Nc3 {[%emt 0:00:42]} Bf6 {[%emt 0:14:36]} 20. Rd1 {[%emt 0:01:50]} Nxc3 {[%emt 0:00:54]} 21. bxc3 {[%emt 0:00:26]} Rxc3 {[%emt 0:00:16]} 22. h3 {[%emt 0:01:49]} Kc7 {[%emt 0:00:44]} 23. Rb1 {[%emt 0:00:42]} b6 {[%emt 0:00:28]} 24. Rb4 {[%emt 0:00:51]} Be5 {[%emt 0:01:55]} 25. Rb1 {[%emt 0:00:19]} Rc2 {[%emt 0:01:01]} 26. g3 {[%emt 0:01:06]} Rxa2 {[%emt 0:01:10]} 27. Rc1+ {[%emt 0:01:23]} Kd7 {[%emt 0:00:48]} 28. Bc6+ {[%emt 0:00:33]} Ke7 {[%emt 0:00:15]} 29. Kg2 {[%emt 0:01:37]} Bd4 {[%emt 0:01:11]} 30. Rf1 {[%emt 0:01:51]} Kd6 {[%emt 0:00:12]} 31. Be4 {[%emt 0:00:22]} f5 {[%emt 0:01:12]} 32. Bf3 {[%emt 0:03:14]} b5 {[%emt 0:00:30]} 33. g4 {[%emt 0:05:23]} a5 {[%emt 0:01:14]} 34. gxf5 {[%emt 0:01:44]} exf5 {[%emt 0:00:24]} 35. Bd1 {[%emt 0:01:14]} a4 {[%emt 0:28:00]} 36. Bxa4 {[%emt 0:00:45]} bxa4 {[%emt 0:00:00]} 37. h4 {[%emt 0:00:13]} Rxf2+ {[%emt 0:00:00]} 38. Rxf2 {[%emt 0:00:35]} Bxf2 {[%emt 0:00:00]} 39. Kxf2 {[%emt 0:00:19]} a3 {[%emt 0:00:00]} 40. Kf3 {[%emt 0:00:11]} a2 {[%emt 0:00:00]} 41. h5 {[%emt 0:00:38]} a1=Q {[%emt 0:00:00]} 42. h6 {[%emt 0:00:07]} g5 {[%emt 0:00:00]} 43. Kg3 {[%emt 0:00:13]} Qc3+ {[%emt 0:00:00]} 44. Kh2 {[%emt 0:00:09]} Ke5 {[%emt 0:00:00]} 45. Kh1 {[%emt 0:00:27]} Kf4 {[%emt 0:00:00]} 46. Kg1 {[%emt 0:00:27]} Kg3 {[%emt 0:00:00]} 47. Kf1 {[%emt 0:00:11]} Qd2 {[%emt 0:00:00]} 48. Kg1 {[%emt 0:00:04]} Qg2# {[%emt 0:00:00]} 0-1

[Event "FIDE WCCC Open-08 2024"]
[Site "Montesilvano"]
[Date "2024.11.25"]
[Round "10.28"]
[White "Mohamed Fouad, Yahia"]
[Black "Lee, Yoonjae A"]
[Result "1-0"]
[Annotator "NA RC"]
[ECO "D34"]
[WhiteElo "1705"]
[BlackElo "1546"]
[PlyCount "109"]
[EventDate "2024.11.18"]
[EventType "swiss"]
[EventCountry "ITA"]
[SourceTitle "playchess.com"]
[Source "ChessBase"]
[SourceQuality "1"]
[TimeControl "5400+30"]

1. d4 {[%emt 0:00:10]} d5 {[%emt 0:04:28]} 2. Nf3 {[%emt 0:00:17]} Nf6 {[%emt 0:05:45]} 3. c4 {[%emt 0:00:42]} e6 {[%emt 0:04:07]} 4. Nc3 {[%emt 0:00:51]} Be7 {[%emt 0:02:10]} 5. cxd5 {[%emt 0:00:51]} exd5 {[%emt 0:04:46]} 6. g3 {[%emt 0:00:25]} O-O {[%emt 0:07:57]} 7. Bg2 {[%emt 0:00:41]} c5 {[%emt 0:03:26]} 8. O-O {[%emt 0:01:36]} Nc6 {[%emt 0:02:29]} 9. Bg5 {[%emt 0:00:45]} Be6 {[%emt 0:59:52]} 10. Bxf6 {[%emt 0:03:12]} Bxf6 {[%emt 0:00:00]} 11. dxc5 {[%emt 0:01:21]} Bxc3 {[%emt 0:00:00]} 12. bxc3 {[%emt 0:01:53]} Qa5 {[%emt 0:00:00]} 13. Qd3 {[%emt 0:00:58]} Qxc5 {[%emt 0:00:00]} 14. Rab1 {[%emt 0:01:07]} Qe7 {[%emt 0:00:00]} 15. Qb5 {[%emt 0:00:57]} Rab8 {[%emt 0:00:00]} 16. Nd4 {[%emt 0:02:06]} Nxd4 {[%emt 0:00:00]} 17. cxd4 {[%emt 0:00:16]} Rfd8 {[%emt 0:00:00]} 18. Rfc1 {[%emt 0:02:29]} Qd7 {[%emt 0:00:00]} 19. Qxd7 {[%emt 0:00:56]} Rxd7 {[%emt 0:00:00]} 20. Rc3 {[%emt 0:00:54]} Bf5 {[%emt 0:00:00]} 21. Rbc1 {[%emt 0:01:24]} Rd6 {[%emt 0:00:00]} 22. Rc5 {[%emt 0:00:55]} Be6 {[%emt 0:00:00]} 23. e3 {[%emt 0:01:39]} Rc6 {[%emt 0:00:00]} 24. h3 {[%emt 0:01:28]} Rd6 {[%emt 0:00:00]} 25. Kh2 {[%emt 0:01:09]} Ra6 {[%emt 0:00:00]} 26. Bxd5 {[%emt 0:00:46]} Kf8 {[%emt 0:00:00]} 27. Bb3 {[%emt 0:01:09]} Bxb3 {[%emt 0:00:00]} 28. axb3 {[%emt 0:00:08]} Ra2 {[%emt 0:00:00]} 29. Kg2 {[%emt 0:00:21]} Rb2 {[%emt 0:00:00]} 30. Rc8+ {[%emt 0:07:29]} Rxc8 {[%emt 0:00:00]} 31. Rxc8+ {[%emt 0:00:05]} Ke7 {[%emt 0:00:00]} 32. Rc7+ {[%emt 0:00:08]} Kf6 {[%emt 0:00:00]} 33. Rxb7 {[%emt 0:00:06]} a5 {[%emt 0:00:00]} 34. Ra7 {[%emt 0:00:39]} Rxb3 {[%emt 0:00:00]} 35. Rxa5 {[%emt 0:00:04]} Rd3 {[%emt 0:00:00]} 36. Kf3 {[%emt 0:00:25]} Ke6 {[%emt 0:00:00]} 37. Ke4 {[%emt 0:00:18]} Rd2 {[%emt 0:00:00]} 38. f4 {[%emt 0:00:21]} g6 {[%emt 0:00:00]} 39. h4 {[%emt 0:00:26]} h6 {[%emt 0:00:00]} 40. Ra6+ {[%emt 0:00:21]} Ke7 {[%emt 0:00:00]} 41. Ke5 {[%emt 0:00:17]} Re2 {[%emt 0:00:00]} 42. Ra7+ {[%emt 0:00:25]} Ke8 {[%emt 0:00:00]} 43. Kd6 {[%emt 0:00:26]} f5 {[%emt 0:00:00]} 44. Rg7 {[%emt 0:00:18]} Rxe3 {[%emt 0:00:00]} 45. Rxg6 {[%emt 0:00:08]} h5 {[%emt 0:00:00]} 46. Re6+ {[%emt 0:00:06]} Rxe6+ {[%emt 0:18:30]} 47. Kxe6 {[%emt 0:00:07]} Kf8 {[%emt 0:00:00]} 48. d5 {[%emt 0:00:29]} Ke8 {[%emt 0:00:00]} 49. d6 {[%emt 0:00:10]} Kf8 {[%emt 0:00:00]} 50. d7 {[%emt 0:00:15]} Kg7 {[%emt 0:00:00]} 51. d8=Q {[%emt 1:11:31]} Kg6 {[%emt 0:00:00]} 52. Qe8+ {[%emt 0:00:00]} Kh6 {[%emt 0:03:00]} 53. Kf6 {[%emt 0:00:00]} Kh7 {[%emt 0:00:00]} 54. Qf7+ {[%emt 0:00:00]} Kh6 {[%emt 0:00:00]} 55. Qg7# {[%emt 0:00:00]} 1-0

[Event "FIDE WCCC Open-08 2024"]
[Site "Montesilvano"]
[Date "2024.11.25"]
[Round "10.29"]
[White "Mudriievskyi, Jan"]
[Black "Kalinin, Bogdan"]
[Result "1/2-1/2"]
[Annotator "NA RC"]
[ECO "B33"]
[WhiteElo "1682"]
[BlackElo "1548"]
[PlyCount "108"]
[EventDate "2024.11.18"]
[EventType "swiss"]
[EventCountry "ITA"]
[SourceTitle "playchess.com"]
[Source "ChessBase"]
[SourceQuality "1"]
[TimeControl "5400+30"]

1. e4 {[%emt 0:00:02]} c5 {[%emt 0:00:15]} 2. Nf3 {[%emt 0:00:13]} Nc6 {[%emt 0:00:09]} 3. d4 {[%emt 0:00:17]} cxd4 {[%emt 0:00:11]} 4. Nxd4 {[%emt 0:00:31]} Nf6 {[%emt 0:00:13]} 5. Nc3 {[%emt 0:00:23]} e5 {[%emt 0:00:14]} 6. Ndb5 {[%emt 0:00:27]} d6 {[%emt 0:00:07]} 7. Bg5 {[%emt 0:00:23]} a6 {[%emt 0:00:06]} 8. Na3 {[%emt 0:00:14]} b5 {[%emt 0:00:04]} 9. Nd5 {[%emt 0:00:15]} Be7 {[%emt 0:00:12]} 10. Bxf6 {[%emt 0:01:10]} Bxf6 {[%emt 0:00:08]} 11. Bd3 {[%emt 0:00:32]} O-O {[%emt 0:00:32]} 12. O-O {[%emt 0:00:48]} Bg5 {[%emt 0:01:11]} 13. c4 {[%emt 0:00:56]} b4 {[%emt 0:00:15]} 14. Nc2 {[%emt 0:00:12]} a5 {[%emt 0:00:05]} 15. Qe2 {[%emt 0:04:21]} g6 {[%emt 0:04:00]} 16. Rad1 {[%emt 0:08:09]} f5 {[%emt 0:24:55]} 17. f4 {[%emt 0:06:59]} Bh6 {[%emt 0:18:54]} 18. exf5 {[%emt 0:07:27]} Bxf5 {[%emt 0:47:59]} 19. Be4 {[%emt 0:06:49]} exf4 {[%emt 0:00:00]} 20. Nxf4 {[%emt 0:05:50]} Bxf4 {[%emt 0:00:00]} 21. Rxf4 {[%emt 0:01:28]} Re8 {[%emt 0:00:00]} 22. Bd5+ {[%emt 0:01:47]} Kg7 {[%emt 0:00:00]} 23. Qf2 {[%emt 0:00:44]} Rc8 {[%emt 0:00:00]} 24. Nd4 {[%emt 0:01:27]} Nxd4 {[%emt 0:00:00]} 25. Qxd4+ {[%emt 0:01:00]} Qf6 {[%emt 0:00:00]} 26. Qxf6+ {[%emt 0:01:29]} Kxf6 {[%emt 0:00:00]} 27. g4 {[%emt 0:00:34]} Kg5 {[%emt 0:00:05]} 28. Rdd4 {[%emt 0:00:07]} Be6 {[%emt 0:00:36]} 29. Bxe6 {[%emt 0:01:09]} Rxe6 {[%emt 0:00:07]} 30. Rf2 {[%emt 0:00:51]} Rc5 {[%emt 0:00:38]} 31. Rfd2 {[%emt 0:00:27]} Rc6 {[%emt 0:00:43]} 32. Kg2 {[%emt 0:00:14]} Re5 {[%emt 0:01:13]} 33. h3 {[%emt 0:00:20]} Rec5 {[%emt 0:01:04]} 34. b3 {[%emt 0:00:20]} Re5 {[%emt 0:00:29]} 35. Kf3 {[%emt 0:00:34]} a4 {[%emt 0:00:55]} 36. Rxd6 {[%emt 0:00:31]} Rxd6 {[%emt 0:00:28]} 37. Rxd6 {[%emt 0:00:10]} axb3 {[%emt 0:00:12]} 38. axb3 {[%emt 0:00:09]} Re1 {[%emt 0:00:30]} 39. Rb6 {[%emt 0:00:35]} Rc1 {[%emt 0:00:15]} 40. Rxb4 {[%emt 0:00:39]} Rc3+ {[%emt 0:00:22]} 41. Kg2 {[%emt 0:00:08]} Rc2+ {[%emt 0:00:09]} 42. Kf1 {[%emt 0:00:07]} Kh4 {[%emt 0:00:34]} 43. Rb7 {[%emt 0:00:15]} Kxh3 {[%emt 0:00:16]} 44. Rxh7+ {[%emt 0:00:12]} Kxg4 {[%emt 0:00:06]} 45. Rg7 {[%emt 0:01:41]} g5 {[%emt 0:00:19]} 46. Rf7 {[%emt 0:01:45]} Kg3 {[%emt 0:00:19]} 47. Rd7 {[%emt 0:00:38]} g4 {[%emt 0:00:18]} 48. Rd3+ {[%emt 0:00:58]} Kh2 {[%emt 0:00:12]} 49. Rd8 {[%emt 0:03:52]} Rc1+ {[%emt 0:00:16]} 50. Ke2 {[%emt 0:00:09]} Rc3 {[%emt 0:02:03]} 51. Rd4 {[%emt 0:06:33]} g3 {[%emt 0:01:07]} 52. Rh4+ {[%emt 0:01:14]} Kg1 {[%emt 0:00:42]} 53. b4 {[%emt 0:00:41]} g2 {[%emt 0:01:13]} 54. b5 {[%emt 0:01:01]} Rc2+ {[%emt 0:01:49]} 1/2-1/2